[Event "Early Titled Tuesday Blitz | February 8 2022"]
[White "Yirik, Volkan"]
[Black "Gunina, Valentina"]
[WhiteFideId "6300782"]
[BlackFideId "4167570"]
[WhiteElo "2314"]
[BlackElo "2465"]
[Result "1-0"]
[Round "01"]
[TimeControl "180+1"]
[Date "2022.02.08"]
[WhiteClock "0:01:20"]
[BlackClock "0:00:03"]

1. e4 {[%clk 0:03:00]}  c6 {[%clk 0:02:59]} 2. d4 {[%clk 0:02:56]}  d5 {[%clk 0:02:59]} 3. Nc3 {[%clk 0:02:56]}  dxe4 {[%clk 0:02:59]} 4. f3 {[%clk 0:02:57]}  e3 {[%clk 0:02:54]} 5. Bxe3 {[%clk 0:02:56]}  Nf6 {[%clk 0:02:54]} 6. Bd3 {[%clk 0:02:56]}  g6 {[%clk 0:02:51]} 7. Nge2 {[%clk 0:02:56]}  Bg7 {[%clk 0:02:52]} 8. Qd2 {[%clk 0:02:56]}  O-O {[%clk 0:02:52]} 9. Bh6 {[%clk 0:02:57]}  Na6 {[%clk 0:02:33]} 10. h4 {[%clk 0:02:49]}  Nb4 {[%clk 0:02:32]} 11. h5 {[%clk 0:02:47]}  Nxd3+ {[%clk 0:02:29]} 12. cxd3 {[%clk 0:02:47]}  Qa5 {[%clk 0:01:56]} 13. Bxg7 {[%clk 0:02:44]}  Kxg7 {[%clk 0:01:56]} 14. hxg6 {[%clk 0:02:44]}  fxg6 {[%clk 0:01:56]} 15. Qh6+ {[%clk 0:02:44]}  Kg8 {[%clk 0:01:53]} 16. O-O-O {[%clk 0:02:41]}  Rf7 {[%clk 0:01:43]} 17. Kb1 {[%clk 0:02:31]}  Nd5 {[%clk 0:01:42]} 18. Nxd5 {[%clk 0:02:29]}  Qxd5 {[%clk 0:01:41]} 19. Nf4 {[%clk 0:02:28]}  Qd6 {[%clk 0:01:30]} 20. g3 {[%clk 0:02:19]}  Bf5 {[%clk 0:01:30]} 21. Ne2 {[%clk 0:02:10]}  Qd5 {[%clk 0:01:23]} 22. g4 {[%clk 0:02:05]}  Be6 {[%clk 0:01:22]} 23. Nc3 {[%clk 0:02:01]}  Qxd4 {[%clk 0:01:22]} 24. Ne4 {[%clk 0:01:55]}  Qg7 {[%clk 0:00:42]} 25. Qe3 {[%clk 0:01:46]}  Qe5 {[%clk 0:00:33]} 26. Qh6 {[%clk 0:01:42]}  Qd5 {[%clk 0:00:25]} 27. b3 {[%clk 0:01:38]}  Raf8 {[%clk 0:00:14]} 28. Ng5 {[%clk 0:01:37]}  a5 {[%clk 0:00:14]} 29. Nxh7 {[%clk 0:01:29]}  Rxf3 {[%clk 0:00:06]} 30. Nxf8 {[%clk 0:01:27]}  Kf7 {[%clk 0:00:02]} 31. Nxe6 {[%clk 0:01:24]}  a4 {[%clk 0:00:02]} 32. Ng5+ {[%clk 0:01:22]}  Kf6 {[%clk 0:00:02]} 33. Nxf3 {[%clk 0:01:21]}  a3 {[%clk 0:00:03]} 34. Qg5+ {[%clk 0:01:20]} 1-0


[Site "https://www.chess.com"]

[Event "Early Titled Tuesday Blitz | February 8 2022"]
[White "Yuan, Qingyu"]
[Black "Wahedi, Ahmad Siar"]
[WhiteFideId "8609772"]
[BlackFideId "4651260"]
[WhiteElo "2359"]
[BlackElo "2356"]
[Result "1-0"]
[Round "01"]
[TimeControl "180+1"]
[Date "2022.02.08"]
[WhiteClock "0:00:03"]
[BlackClock "0:00:01"]

1. Nf3 {[%clk 0:03:00]}  Nf6 {[%clk 0:03:00]} 2. g3 {[%clk 0:02:59]}  g6 {[%clk 0:03:01]} 3. b3 {[%clk 0:02:59]}  Bg7 {[%clk 0:03:01]} 4. Bb2 {[%clk 0:02:56]}  O-O {[%clk 0:03:02]} 5. Bg2 {[%clk 0:02:56]}  c5 {[%clk 0:03:03]} 6. c4 {[%clk 0:02:56]}  Nc6 {[%clk 0:03:01]} 7. O-O {[%clk 0:02:45]}  d6 {[%clk 0:03:01]} 8. d4 {[%clk 0:02:44]}  cxd4 {[%clk 0:02:57]} 9. Nxd4 {[%clk 0:02:44]}  Bd7 {[%clk 0:02:57]} 10. Nd2 {[%clk 0:02:33]}  Nxd4 {[%clk 0:02:56]} 11. Bxd4 {[%clk 0:02:31]}  Bc6 {[%clk 0:02:56]} 12. Nf3 {[%clk 0:02:28]}  Qd7 {[%clk 0:02:49]} 13. Rc1 {[%clk 0:02:16]}  Rfc8 {[%clk 0:02:48]} 14. Qc2 {[%clk 0:02:07]}  Be4 {[%clk 0:02:46]} 15. Qb2 {[%clk 0:02:06]}  Qc6 {[%clk 0:02:45]} 16. Rfd1 {[%clk 0:02:04]}  a6 {[%clk 0:02:41]} 17. b4 {[%clk 0:02:01]}  b6 {[%clk 0:02:39]} 18. a3 {[%clk 0:02:00]}  Qb7 {[%clk 0:02:39]} 19. Ne1 {[%clk 0:01:50]}  Bxg2 {[%clk 0:02:38]} 20. Nxg2 {[%clk 0:01:51]}  Rc7 {[%clk 0:02:35]} 21. Ne3 {[%clk 0:01:45]}  Rac8 {[%clk 0:02:30]} 22. Qb3 {[%clk 0:01:39]}  h5 {[%clk 0:02:23]} 23. Bxf6 {[%clk 0:01:39]}  Bxf6 {[%clk 0:02:21]} 24. Nd5 {[%clk 0:01:39]}  Rd7 {[%clk 0:02:10]} 25. Qe3 {[%clk 0:01:26]}  b5 {[%clk 0:01:54]} 26. Nxf6+ {[%clk 0:00:43]}  exf6 {[%clk 0:01:54]} 27. c5 {[%clk 0:00:40]}  dxc5 {[%clk 0:01:53]} 28. bxc5 {[%clk 0:00:29]}  Rd5 {[%clk 0:01:33]} 29. Rxd5 {[%clk 0:00:24]}  Qxd5 {[%clk 0:01:33]} 30. c6 {[%clk 0:00:24]}  Rc7 {[%clk 0:01:26]} 31. Qb6 {[%clk 0:00:20]}  Qd6 {[%clk 0:01:24]} 32. Qxa6 {[%clk 0:00:20]}  Kg7 {[%clk 0:01:21]} 33. h4 {[%clk 0:00:17]}  b4 {[%clk 0:01:18]} 34. axb4 {[%clk 0:00:14]}  Qxb4 {[%clk 0:01:18]} 35. Qd3 {[%clk 0:00:14]}  Qb2 {[%clk 0:01:14]} 36. Qc4 {[%clk 0:00:13]}  Qe5 {[%clk 0:01:14]} 37. Kg2 {[%clk 0:00:13]}  Qd6 {[%clk 0:01:12]} 38. Rc3 {[%clk 0:00:13]}  Qe5 {[%clk 0:01:12]} 39. Rc2 {[%clk 0:00:11]}  Qd6 {[%clk 0:01:11]} 40. Qe4 {[%clk 0:00:09]}  Qa3 {[%clk 0:01:04]} 41. Qd5 {[%clk 0:00:08]}  Qe7 {[%clk 0:01:04]} 42. e3 {[%clk 0:00:05]}  Qa3 {[%clk 0:01:03]} 43. Rc4 {[%clk 0:00:05]}  Qe7 {[%clk 0:01:01]} 44. Rc3 {[%clk 0:00:03]}  Qb4 {[%clk 0:00:59]} 45. Rc2 {[%clk 0:00:04]}  Qa4 {[%clk 0:00:58]} 46. Rc4 {[%clk 0:00:03]}  Qa6 {[%clk 0:00:56]} 47. Rc5 {[%clk 0:00:02]}  Qb6 {[%clk 0:00:55]} 48. Qd6 {[%clk 0:00:02]}  Qb8 {[%clk 0:00:54]} 49. Rc4 {[%clk 0:00:02]}  Qc8 {[%clk 0:00:54]} 50. Rc5 {[%clk 0:00:02]}  Qb8 {[%clk 0:00:53]} 51. e4 {[%clk 0:00:02]}  Qb6 {[%clk 0:00:53]} 52. e5 {[%clk 0:00:03]}  fxe5 {[%clk 0:00:53]} 53. Qxe5+ {[%clk 0:00:04]}  Kg8 {[%clk 0:00:53]} 54. Rd5 {[%clk 0:00:04]}  Qxc6 {[%clk 0:00:51]} 55. Kh2 {[%clk 0:00:04]}  Rc8 {[%clk 0:00:51]} 56. Rd6 {[%clk 0:00:05]}  Qc5 {[%clk 0:00:50]} 57. Qf6 {[%clk 0:00:05]}  Qc4 {[%clk 0:00:48]} 58. Qe5 {[%clk 0:00:05]}  Rf8 {[%clk 0:00:47]} 59. Qf6 {[%clk 0:00:05]}  Rc8 {[%clk 0:00:46]} 60. Qe5 {[%clk 0:00:04]}  Qc5 {[%clk 0:00:45]} 61. Rd8+ {[%clk 0:00:04]}  Kh7 {[%clk 0:00:44]} 62. Rh8+ {[%clk 0:00:05]}  Rxh8 {[%clk 0:00:43]} 63. Qxc5 {[%clk 0:00:05]}  Re8 {[%clk 0:00:42]} 64. Qg5 {[%clk 0:00:05]}  Re6 {[%clk 0:00:40]} 65. Qd8 {[%clk 0:00:05]}  Kg7 {[%clk 0:00:40]} 66. Kg2 {[%clk 0:00:05]}  Kh7 {[%clk 0:00:36]} 67. Qd4 {[%clk 0:00:05]}  Kg8 {[%clk 0:00:35]} 68. Qd5 {[%clk 0:00:05]}  Kg7 {[%clk 0:00:33]} 69. Kf3 {[%clk 0:00:05]}  Kg8 {[%clk 0:00:33]} 70. Kf4 {[%clk 0:00:05]}  Rf6+ {[%clk 0:00:31]} 71. Kg5 {[%clk 0:00:03]}  Rxf2 {[%clk 0:00:29]} 72. Kh6 {[%clk 0:00:03]}  g5 {[%clk 0:00:01]} 73. Qd8# {[%clk 0:00:03]} 1-0


[Site "https://www.chess.com"]

[Event "Early Titled Tuesday Blitz | February 8 2022"]
[White "Yushko, Olga"]
[Black "Ozkan, Taha"]
[WhiteFideId "14114500"]
[BlackFideId "34577173"]
[WhiteElo "2028"]
[BlackElo "2024"]
[Result "1-0"]
[Round "01"]
[TimeControl "180+1"]
[Date "2022.02.08"]
[WhiteClock "0:00:19"]
[BlackClock "0:01:37"]

1. d4 {[%clk 0:02:58]}  d5 {[%clk 0:02:59]} 2. c4 {[%clk 0:02:57]}  c6 {[%clk 0:02:59]} 3. cxd5 {[%clk 0:02:58]}  cxd5 {[%clk 0:03:00]} 4. Nc3 {[%clk 0:02:58]}  Nf6 {[%clk 0:03:00]} 5. Nf3 {[%clk 0:02:59]}  Nc6 {[%clk 0:03:01]} 6. Bf4 {[%clk 0:02:59]}  Bf5 {[%clk 0:03:01]} 7. e3 {[%clk 0:02:59]}  e6 {[%clk 0:03:02]} 8. Bd3 {[%clk 0:02:59]}  Bxd3 {[%clk 0:03:01]} 9. Qxd3 {[%clk 0:03:00]}  Bd6 {[%clk 0:03:02]} 10. Bg5 {[%clk 0:03:00]}  O-O {[%clk 0:03:02]} 11. O-O {[%clk 0:03:01]}  a6 {[%clk 0:03:00]} 12. Rac1 {[%clk 0:03:00]}  Rc8 {[%clk 0:02:59]} 13. a3 {[%clk 0:02:56]}  b5 {[%clk 0:02:59]} 14. e4 {[%clk 0:02:49]}  dxe4 {[%clk 0:02:59]} 15. Nxe4 {[%clk 0:02:48]}  Be7 {[%clk 0:03:00]} 16. Rfd1 {[%clk 0:02:30]}  Nxe4 {[%clk 0:02:58]} 17. Bxe7 {[%clk 0:02:30]}  Nxe7 {[%clk 0:02:59]} 18. Qxe4 {[%clk 0:02:30]}  Qd5 {[%clk 0:02:58]} 19. Qg4 {[%clk 0:02:19]}  Rfd8 {[%clk 0:02:52]} 20. h4 {[%clk 0:02:15]}  h5 {[%clk 0:02:51]} 21. Qf4 {[%clk 0:02:07]}  Qf5 {[%clk 0:02:48]} 22. Qg3 {[%clk 0:01:59]}  g6 {[%clk 0:02:47]} 23. Rc7 {[%clk 0:01:46]}  Nd5 {[%clk 0:02:42]} 24. Rc5 {[%clk 0:01:40]}  Nf4 {[%clk 0:02:37]} 25. Rxc8 {[%clk 0:00:56]}  Rxc8 {[%clk 0:02:29]} 26. Qg5 {[%clk 0:00:48]}  Qxg5 {[%clk 0:02:29]} 27. hxg5 {[%clk 0:00:47]}  Rc2 {[%clk 0:02:29]} 28. b4 {[%clk 0:00:40]}  Rc3 {[%clk 0:02:28]} 29. Ra1 {[%clk 0:00:38]}  Nd5 {[%clk 0:02:20]} 30. Kf1 {[%clk 0:00:37]}  Nb6 {[%clk 0:02:20]} 31. Ke2 {[%clk 0:00:32]}  Nc4 {[%clk 0:02:19]} 32. a4 {[%clk 0:00:32]}  Rc2+ {[%clk 0:02:18]} 33. Ke1 {[%clk 0:00:31]}  Nb2 {[%clk 0:02:06]} 34. axb5 {[%clk 0:00:29]}  axb5 {[%clk 0:02:07]} 35. Ra8+ {[%clk 0:00:29]}  Kg7 {[%clk 0:02:07]} 36. Rb8 {[%clk 0:00:26]}  Nd3+ {[%clk 0:02:07]} 37. Kd1 {[%clk 0:00:26]}  Rxf2 {[%clk 0:02:07]} 38. Rxb5 {[%clk 0:00:25]}  Rxg2 {[%clk 0:02:07]} 39. Rb7 {[%clk 0:00:22]}  Rb2 {[%clk 0:02:07]} 40. b5 {[%clk 0:00:22]}  Rf2 {[%clk 0:02:07]} 41. Nd2 {[%clk 0:00:20]}  h4 {[%clk 0:02:06]} 42. Ne4 {[%clk 0:00:20]}  Rb2 {[%clk 0:02:05]} 43. Nf6 {[%clk 0:00:18]}  Rf2 {[%clk 0:02:04]} 44. Rb8 {[%clk 0:00:16]}  Rxf6 {[%clk 0:02:04]} 45. gxf6+ {[%clk 0:00:17]}  Kxf6 {[%clk 0:02:05]} 46. b6 {[%clk 0:00:17]}  h3 {[%clk 0:02:04]} 47. b7 {[%clk 0:00:18]}  Kg7 {[%clk 0:01:37]} 48. Rh8 {[%clk 0:00:17]}  Kxh8 {[%clk 0:01:37]} 49. b8=Q+ {[%clk 0:00:18]}  Kg7 {[%clk 0:01:37]} 50. Qg3 {[%clk 0:00:18]}  Nb4 {[%clk 0:01:30]} 51. Qxh3 {[%clk 0:00:16]}  Nd5 {[%clk 0:01:31]} 52. Qg3 {[%clk 0:00:15]}  Kf8 {[%clk 0:01:32]} 53. Qd6+ {[%clk 0:00:15]}  Kg7 {[%clk 0:01:32]} 54. Kd2 {[%clk 0:00:15]}  Nf6 {[%clk 0:01:31]} 55. Qe5 {[%clk 0:00:15]}  Kg8 {[%clk 0:01:27]} 56. Qxf6 {[%clk 0:00:15]}  Kf8 {[%clk 0:01:28]} 57. Ke3 {[%clk 0:00:15]}  Ke8 {[%clk 0:01:29]} 58. Kf4 {[%clk 0:00:15]}  Kd7 {[%clk 0:01:30]} 59. Qxf7+ {[%clk 0:00:15]}  Kc6 {[%clk 0:01:31]} 60. Qxe6+ {[%clk 0:00:16]}  Kb5 {[%clk 0:01:31]} 61. Qxg6 {[%clk 0:00:16]}  Kb4 {[%clk 0:01:32]} 62. Qc6 {[%clk 0:00:16]}  Kb3 {[%clk 0:01:32]} 63. d5 {[%clk 0:00:17]}  Kb2 {[%clk 0:01:33]} 64. d6 {[%clk 0:00:18]}  Ka1 {[%clk 0:01:34]} 65. d7 {[%clk 0:00:18]}  Kb1 {[%clk 0:01:35]} 66. d8=Q {[%clk 0:00:18]}  Kb2 {[%clk 0:01:36]} 67. Qb8+ {[%clk 0:00:18]}  Ka1 {[%clk 0:01:37]} 68. Qa4# {[%clk 0:00:19]} 1-0


[Site "https://www.chess.com"]

[Event "Early Titled Tuesday Blitz | February 8 2022"]
[White "Aggelis, Nikolaos"]
[Black "Dejmek, Mark"]
[WhiteFideId "4213220"]
[BlackFideId "2017628"]
[WhiteElo "2154"]
[BlackElo "2198"]
[Result "1-0"]
[Round "02"]
[TimeControl "180+1"]
[Date "2022.02.08"]
[WhiteClock "0:01:24"]
[BlackClock "0:00:22"]

1. d4 {[%clk 0:02:57]}  Nf6 {[%clk 0:02:58]} 2. g3 {[%clk 0:02:58]}  g6 {[%clk 0:02:44]} 3. Bg2 {[%clk 0:02:57]}  Bg7 {[%clk 0:02:44]} 4. Nf3 {[%clk 0:02:53]}  O-O {[%clk 0:02:42]} 5. O-O {[%clk 0:02:54]}  c5 {[%clk 0:02:37]} 6. dxc5 {[%clk 0:02:52]}  Na6 {[%clk 0:02:35]} 7. Be3 {[%clk 0:02:53]}  Ng4 {[%clk 0:02:19]} 8. Bd4 {[%clk 0:02:52]}  e5 {[%clk 0:02:19]} 9. Bc3 {[%clk 0:02:49]}  Nxc5 {[%clk 0:02:17]} 10. h3 {[%clk 0:02:49]}  Nf6 {[%clk 0:01:47]} 11. Bxe5 {[%clk 0:02:47]}  d5 {[%clk 0:01:45]} 12. Nc3 {[%clk 0:02:46]}  Nce4 {[%clk 0:01:41]} 13. Nxe4 {[%clk 0:02:42]}  dxe4 {[%clk 0:01:38]} 14. Qxd8 {[%clk 0:02:37]}  Rxd8 {[%clk 0:01:39]} 15. Ng5 {[%clk 0:02:36]}  e3 {[%clk 0:01:37]} 16. fxe3 {[%clk 0:02:32]}  h6 {[%clk 0:01:35]} 17. Bxf6 {[%clk 0:02:20]}  Bxf6 {[%clk 0:01:29]} 18. Rxf6 {[%clk 0:02:21]}  hxg5 {[%clk 0:01:29]} 19. Be4 {[%clk 0:02:13]}  Bxh3 {[%clk 0:01:22]} 20. Kh2 {[%clk 0:02:12]}  Be6 {[%clk 0:01:20]} 21. Raf1 {[%clk 0:02:12]}  Rac8 {[%clk 0:01:08]} 22. Bxg6 {[%clk 0:02:11]}  Kg7 {[%clk 0:01:03]} 23. Bxf7 {[%clk 0:02:05]}  Bxf7 {[%clk 0:00:46]} 24. Rxf7+ {[%clk 0:02:06]}  Kg6 {[%clk 0:00:44]} 25. g4 {[%clk 0:01:52]}  Rd6 {[%clk 0:00:44]} 26. c3 {[%clk 0:01:42]}  Re8 {[%clk 0:00:43]} 27. Rxb7 {[%clk 0:01:36]}  Rxe3 {[%clk 0:00:43]} 28. Rf2 {[%clk 0:01:35]}  Rd2 {[%clk 0:00:36]} 29. Kg2 {[%clk 0:01:27]}  Rdxe2 {[%clk 0:00:33]} 30. Rxe2 {[%clk 0:01:28]}  Rxe2+ {[%clk 0:00:34]} 31. Kf3 {[%clk 0:01:28]}  Rh2 {[%clk 0:00:32]} 32. a4 {[%clk 0:01:27]}  a5 {[%clk 0:00:31]} 33. b4 {[%clk 0:01:25]}  axb4 {[%clk 0:00:31]} 34. cxb4 {[%clk 0:01:25]}  Kf6 {[%clk 0:00:28]} 35. a5 {[%clk 0:01:25]}  Ke5 {[%clk 0:00:23]} 36. a6 {[%clk 0:01:25]}  Rh3+ {[%clk 0:00:23]} 37. Ke2 {[%clk 0:01:24]}  Ra3 {[%clk 0:00:22]} 38. a7 {[%clk 0:01:24]}  Kd5 {[%clk 0:00:23]} 39. b5 {[%clk 0:01:23]}  Kc5 {[%clk 0:00:22]} 40. b6 {[%clk 0:01:23]}  Kc6 {[%clk 0:00:22]} 41. Rb8 {[%clk 0:01:24]} 1-0


[Site "https://www.chess.com"]

[Event "Early Titled Tuesday Blitz | February 8 2022"]
[White "Al Hosani, Omran"]
[Black "Kravtsiv, Martyn"]
[WhiteFideId "9308733"]
[BlackFideId "14113147"]
[WhiteElo "2246"]
[BlackElo "2694"]
[Result "0-1"]
[Round "02"]
[TimeControl "180+1"]
[Date "2022.02.08"]
[WhiteClock "0:00:03"]
[BlackClock "0:00:03"]

1. d4 {[%clk 0:02:55]}  d5 {[%clk 0:02:58]} 2. c4 {[%clk 0:02:55]}  e6 {[%clk 0:02:59]} 3. Nc3 {[%clk 0:02:55]}  Bb4 {[%clk 0:02:59]} 4. Qa4+ {[%clk 0:02:52]}  Nc6 {[%clk 0:02:58]} 5. Nf3 {[%clk 0:02:53]}  Bd7 {[%clk 0:02:52]} 6. Qc2 {[%clk 0:02:48]}  Nf6 {[%clk 0:02:48]} 7. e3 {[%clk 0:02:46]}  O-O {[%clk 0:02:47]} 8. Bd3 {[%clk 0:02:46]}  Bd6 {[%clk 0:02:39]} 9. a3 {[%clk 0:02:40]}  dxc4 {[%clk 0:02:38]} 10. Bxc4 {[%clk 0:02:40]}  e5 {[%clk 0:02:38]} 11. dxe5 {[%clk 0:02:34]}  Nxe5 {[%clk 0:02:38]} 12. Be2 {[%clk 0:02:04]}  Bc6 {[%clk 0:02:28]} 13. Nxe5 {[%clk 0:01:38]}  Bxe5 {[%clk 0:02:27]} 14. O-O {[%clk 0:01:39]}  Qd6 {[%clk 0:02:14]} 15. f4 {[%clk 0:01:34]}  Bxc3 {[%clk 0:02:12]} 16. Qxc3 {[%clk 0:01:35]}  Rad8 {[%clk 0:02:07]} 17. b4 {[%clk 0:01:29]}  Ne4 {[%clk 0:01:44]} 18. Qc2 {[%clk 0:01:23]}  Rfe8 {[%clk 0:01:38]} 19. b5 {[%clk 0:01:10]}  Bd5 {[%clk 0:01:35]} 20. Bb2 {[%clk 0:01:10]}  Qg6 {[%clk 0:01:08]} 21. Bf3 {[%clk 0:01:04]}  Ng5 {[%clk 0:00:49]} 22. Qxg6 {[%clk 0:00:44]}  Nxf3+ {[%clk 0:00:48]} 23. gxf3 {[%clk 0:00:45]}  hxg6 {[%clk 0:00:47]} 24. Bd4 {[%clk 0:00:42]}  b6 {[%clk 0:00:39]} 25. Rfc1 {[%clk 0:00:40]}  Rd7 {[%clk 0:00:39]} 26. Kf2 {[%clk 0:00:39]}  Re6 {[%clk 0:00:35]} 27. Rc3 {[%clk 0:00:38]}  c5 {[%clk 0:00:34]} 28. bxc6 {[%clk 0:00:38]}  Rxc6 {[%clk 0:00:35]} 29. Rxc6 {[%clk 0:00:38]}  Bxc6 {[%clk 0:00:35]} 30. a4 {[%clk 0:00:38]}  Bb7 {[%clk 0:00:24]} 31. a5 {[%clk 0:00:38]}  bxa5 {[%clk 0:00:24]} 32. Rxa5 {[%clk 0:00:38]}  a6 {[%clk 0:00:24]} 33. f5 {[%clk 0:00:35]}  gxf5 {[%clk 0:00:22]} 34. Rxf5 {[%clk 0:00:34]}  f6 {[%clk 0:00:22]} 35. Rc5 {[%clk 0:00:33]}  Kf7 {[%clk 0:00:21]} 36. h4 {[%clk 0:00:33]}  Bd5 {[%clk 0:00:20]} 37. Kg3 {[%clk 0:00:32]}  Be6 {[%clk 0:00:17]} 38. Kf4 {[%clk 0:00:32]}  Bd5 {[%clk 0:00:15]} 39. e4 {[%clk 0:00:29]}  Be6 {[%clk 0:00:12]} 40. Ke3 {[%clk 0:00:29]}  Rb7 {[%clk 0:00:11]} 41. Ra5 {[%clk 0:00:22]}  Bc4 {[%clk 0:00:10]} 42. Ra3 {[%clk 0:00:18]}  Rb1 {[%clk 0:00:09]} 43. Rc3 {[%clk 0:00:17]}  Bb5 {[%clk 0:00:09]} 44. Rc7+ {[%clk 0:00:17]}  Kg8 {[%clk 0:00:09]} 45. h5 {[%clk 0:00:17]}  Rh1 {[%clk 0:00:07]} 46. Rc8+ {[%clk 0:00:14]}  Kh7 {[%clk 0:00:07]} 47. Rc7 {[%clk 0:00:14]}  Kh6 {[%clk 0:00:06]} 48. e5 {[%clk 0:00:14]}  fxe5 {[%clk 0:00:04]} 49. Bxe5 {[%clk 0:00:15]}  Rxh5 {[%clk 0:00:05]} 50. Bxg7+ {[%clk 0:00:15]}  Kg6 {[%clk 0:00:05]} 51. Bd4 {[%clk 0:00:15]}  Rh1 {[%clk 0:00:05]} 52. Rg7+ {[%clk 0:00:14]}  Kf5 {[%clk 0:00:05]} 53. Rf7+ {[%clk 0:00:14]}  Ke6 {[%clk 0:00:04]} 54. Rf6+ {[%clk 0:00:15]}  Kd5 {[%clk 0:00:05]} 55. Rf5+ {[%clk 0:00:14]}  Kc4 {[%clk 0:00:05]} 56. Rc5+ {[%clk 0:00:14]}  Kb4 {[%clk 0:00:05]} 57. Rc8 {[%clk 0:00:13]}  a5 {[%clk 0:00:05]} 58. Bc5+ {[%clk 0:00:13]}  Kb3 {[%clk 0:00:04]} 59. Rb8 {[%clk 0:00:13]}  Kc4 {[%clk 0:00:05]} 60. Be7 {[%clk 0:00:11]}  a4 {[%clk 0:00:05]} 61. f4 {[%clk 0:00:11]}  Re1+ {[%clk 0:00:04]} 62. Kf3 {[%clk 0:00:06]}  Rxe7 {[%clk 0:00:05]} 63. f5 {[%clk 0:00:07]}  Ra7 {[%clk 0:00:04]} 64. Rc8+ {[%clk 0:00:05]}  Kb4 {[%clk 0:00:03]} 65. Rc1 {[%clk 0:00:04]}  a3 {[%clk 0:00:03]} 66. Kf4 {[%clk 0:00:04]}  Bc4 {[%clk 0:00:03]} 67. f6 {[%clk 0:00:03]}  a2 {[%clk 0:00:03]} 0-1


[Site "https://www.chess.com"]

[Event "Early Titled Tuesday Blitz | February 8 2022"]
[White "Aloma Vidal, Robert"]
[Black "Sorokin, Aleksey"]
[WhiteFideId "2260409"]
[BlackFideId "24176460"]
[WhiteElo "2435"]
[BlackElo "2476"]
[Result "0-1"]
[Round "02"]
[TimeControl "180+1"]
[Date "2022.02.08"]
[WhiteClock "0:01:10"]
[BlackClock "0:01:56"]

1. e4 {[%clk 0:02:59]}  c5 {[%clk 0:02:59]} 2. c3 {[%clk 0:02:58]}  Nf6 {[%clk 0:02:58]} 3. e5 {[%clk 0:02:58]}  Nd5 {[%clk 0:02:58]} 4. Nf3 {[%clk 0:02:59]}  d6 {[%clk 0:02:57]} 5. exd6 {[%clk 0:02:57]}  e6 {[%clk 0:02:56]} 6. g3 {[%clk 0:02:56]}  Bxd6 {[%clk 0:02:55]} 7. Bg2 {[%clk 0:02:56]}  O-O {[%clk 0:02:51]} 8. O-O {[%clk 0:02:57]}  Nc6 {[%clk 0:02:50]} 9. d4 {[%clk 0:02:57]}  b6 {[%clk 0:02:48]} 10. c4 {[%clk 0:02:47]}  Nde7 {[%clk 0:02:47]} 11. Nc3 {[%clk 0:02:42]}  Bb7 {[%clk 0:02:46]} 12. d5 {[%clk 0:02:42]}  exd5 {[%clk 0:02:45]} 13. cxd5 {[%clk 0:02:43]}  Nb4 {[%clk 0:02:44]} 14. Ng5 {[%clk 0:02:35]}  h6 {[%clk 0:02:42]} 15. Nge4 {[%clk 0:02:35]}  Nbxd5 {[%clk 0:02:36]} 16. Nxd6 {[%clk 0:02:03]}  Qxd6 {[%clk 0:02:35]} 17. Re1 {[%clk 0:02:01]}  Rad8 {[%clk 0:02:22]} 18. Ne4 {[%clk 0:01:52]}  Qg6 {[%clk 0:02:17]} 19. Qa4 {[%clk 0:01:51]}  Bc6 {[%clk 0:02:10]} 20. Qa6 {[%clk 0:01:42]}  Nb4 {[%clk 0:02:08]} 21. Qe2 {[%clk 0:01:35]}  Nf5 {[%clk 0:02:03]} 22. h4 {[%clk 0:01:28]}  Nd4 {[%clk 0:02:02]} 23. Qc4 {[%clk 0:01:24]}  Ndc2 {[%clk 0:02:00]} 24. Bd2 {[%clk 0:01:18]}  Rd4 {[%clk 0:01:57]} 25. Qb3 {[%clk 0:01:10]}  Nxa1 {[%clk 0:01:56]} 0-1


[Site "https://www.chess.com"]

[Event "Early Titled Tuesday Blitz | February 8 2022"]
[White "Andreikin, Dmitry"]
[Black "Yuan, Qingyu"]
[WhiteFideId "4158814"]
[BlackFideId "8609772"]
[WhiteElo "2736"]
[BlackElo "2359"]
[Result "1-0"]
[Round "02"]
[TimeControl "180+1"]
[Date "2022.02.08"]
[WhiteClock "0:01:53"]
[BlackClock "0:00:44"]

1. c4 {[%clk 0:03:00]}  e6 {[%clk 0:02:59]} 2. Nc3 {[%clk 0:02:59]}  d5 {[%clk 0:03:00]} 3. d4 {[%clk 0:02:59]}  Nf6 {[%clk 0:03:00]} 4. Bg5 {[%clk 0:02:57]}  dxc4 {[%clk 0:03:00]} 5. e3 {[%clk 0:02:56]}  c5 {[%clk 0:03:00]} 6. Bxc4 {[%clk 0:02:55]}  cxd4 {[%clk 0:03:00]} 7. exd4 {[%clk 0:02:56]}  Nc6 {[%clk 0:03:01]} 8. Nf3 {[%clk 0:02:56]}  Be7 {[%clk 0:03:01]} 9. O-O {[%clk 0:02:56]}  O-O {[%clk 0:03:02]} 10. Re1 {[%clk 0:02:56]}  a6 {[%clk 0:03:02]} 11. a4 {[%clk 0:02:49]}  b6 {[%clk 0:02:30]} 12. d5 {[%clk 0:02:44]}  Nxd5 {[%clk 0:02:15]} 13. Bxd5 {[%clk 0:02:44]}  exd5 {[%clk 0:01:50]} 14. Qxd5 {[%clk 0:02:43]}  Bxg5 {[%clk 0:01:43]} 15. Qxc6 {[%clk 0:02:21]}  Rb8 {[%clk 0:01:31]} 16. Rad1 {[%clk 0:02:14]}  Qf6 {[%clk 0:01:28]} 17. Rd6 {[%clk 0:01:58]}  Be6 {[%clk 0:01:28]} 18. Ne4 {[%clk 0:01:57]}  Qf4 {[%clk 0:01:06]} 19. Nexg5 {[%clk 0:01:54]}  Rfc8 {[%clk 0:00:49]} 20. Rdxe6 {[%clk 0:01:54]}  fxe6 {[%clk 0:00:44]} 21. Qxe6+ {[%clk 0:01:54]}  Kf8 {[%clk 0:00:44]} 22. Nxh7# {[%clk 0:01:53]} 1-0


[Site "https://www.chess.com"]

[Event "Early Titled Tuesday Blitz | February 8 2022"]
[White "Atanasov, Anthony"]
[Black "Arabidze, Meri"]
[WhiteFideId "2623897"]
[BlackFideId "13604040"]
[WhiteElo "1928"]
[BlackElo "2329"]
[Result "1/2-1/2"]
[Round "02"]
[TimeControl "180+1"]
[Date "2022.02.08"]
[WhiteClock "0:00:04"]
[BlackClock "0:01:14"]

1. d4 {[%clk 0:03:00]}  d5 {[%clk 0:02:59]} 2. Bf4 {[%clk 0:03:00]}  Nf6 {[%clk 0:02:59]} 3. e3 {[%clk 0:03:00]}  e6 {[%clk 0:03:00]} 4. Nf3 {[%clk 0:03:01]}  Bd6 {[%clk 0:03:00]} 5. Nbd2 {[%clk 0:03:01]}  O-O {[%clk 0:03:00]} 6. c3 {[%clk 0:03:02]}  c5 {[%clk 0:03:01]} 7. Bd3 {[%clk 0:03:02]}  Nc6 {[%clk 0:03:01]} 8. Bg3 {[%clk 0:03:02]}  b6 {[%clk 0:03:01]} 9. e4 {[%clk 0:03:02]}  Be7 {[%clk 0:03:00]} 10. e5 {[%clk 0:03:02]}  Nh5 {[%clk 0:02:58]} 11. Ng5 {[%clk 0:03:02]}  Bxg5 {[%clk 0:02:55]} 12. Qxh5 {[%clk 0:03:02]}  g6 {[%clk 0:02:56]} 13. Qe2 {[%clk 0:03:02]}  cxd4 {[%clk 0:02:56]} 14. h4 {[%clk 0:03:01]}  Bh6 {[%clk 0:02:56]} 15. h5 {[%clk 0:03:00]}  dxc3 {[%clk 0:02:57]} 16. bxc3 {[%clk 0:03:00]}  g5 {[%clk 0:02:57]} 17. O-O {[%clk 0:02:14]}  Bg7 {[%clk 0:02:44]} 18. h6 {[%clk 0:01:47]}  Bxh6 {[%clk 0:02:23]} 19. Qh5 {[%clk 0:01:16]}  Kg7 {[%clk 0:02:23]} 20. f4 {[%clk 0:01:10]}  Bd7 {[%clk 0:01:59]} 21. Nf3 {[%clk 0:01:06]}  gxf4 {[%clk 0:01:33]} 22. Bh4 {[%clk 0:01:05]}  f6 {[%clk 0:01:34]} 23. Qg4+ {[%clk 0:00:33]}  Kh8 {[%clk 0:01:30]} 24. Qh5 {[%clk 0:00:33]}  Kg7 {[%clk 0:01:26]} 25. Qg4+ {[%clk 0:00:12]}  Kh8 {[%clk 0:01:23]} 26. Qh5 {[%clk 0:00:04]}  Kg7 {[%clk 0:01:14]} 1/2-1/2


[Site "https://www.chess.com"]